fUST/lending_fUST_20240829
["ID","MTS","AMOUNT","RATE_DAILY","PERIOD"]
[336479058,1724866259993,-500.0,0.00020271,2]
[336479059,1724866260003,-432.89618397,0.00020281,2]
[336479060,1724866260012,-500.0,0.00020281,2]
[336479061,1724866260022,-319.15735821,0.00020281,2]
[336479062,1724866260032,-500.0,0.00020281,2]
[336479063,1724866260041,-250.76,0.00020281,2]
[336479064,1724866260051,-515.29177463,0.00020281,2]
[336479065,1724866260061,-500.0,0.00020281,2]
[336479066,1724866260072,-522.94241602,0.00020281,2]
[336479067,1724866260082,-155.47,0.00020281,2]
[336479068,1724866260091,-500.0,0.00020281,2]
[336479069,1724866260101,-500.0,0.00020281,2]
[336479070,1724866260111,-500.0,0.00020281,2]
[336479071,1724866260120,-500.0,0.00020281,2]
[336479072,1724866260130,-500.0,0.00020281,2]
[336479073,1724866260140,-500.0,0.00020281,2]
[336479074,1724866260149,-500.0,0.00020281,2]
[336479075,1724866260159,-500.0,0.00020281,2]
[336479076,1724866260168,-500.0,0.00020281,2]
[336479077,1724866260178,-562.54331402,0.00020281,2]
[336479078,1724866260187,-504.38795993,0.00020281,2]
[336479079,1724866260197,-500.0,0.00020281,2]
[336479080,1724866260207,-504.09594029,0.00020281,2]
[336479081,1724866260216,-500.0,0.00020281,2]
[336479082,1724866260226,-500.0,0.00020281,2]
[336479083,1724866260235,-500.0,0.00020281,2]
[336479084,1724866260244,-500.0,0.00020281,2]
[336479085,1724866260254,-500.0,0.00020281,2]
[336479086,1724866260264,-693.4,0.00020281,2]
[336479087,1724866260273,-500.0,0.00020281,2]
[336479088,1724866260283,-1023.34,0.00020281,2]
[336479089,1724866260293,-500.0,0.00020281,2]
[336479090,1724866260302,-984.67,0.00020281,2]
[336479091,1724866260312,-796.390896,0.00020281,2]
[336479092,1724866260322,-796.390896,0.00020281,2]
[336479093,1724866260332,-500.0,0.00020281,2]
[336479094,1724866260341,-500.0,0.00020281,2]
[336479095,1724866260352,-500.0,0.00020281,2]
[336479096,1724866260362,-530.16,0.00020281,2]
[336479097,1724866260372,-584.77088632,0.00020281,2]
[336479098,1724866260383,-654.56,0.00020281,2]
[336479099,1724866260393,-500.0,0.00020281,2]
[336479100,1724866260402,-500.0,0.00020281,2]
[336479101,1724866260412,-500.0,0.00020281,2]
[336479102,1724866260421,-500.0,0.00020281,2]
[336479103,1724866260431,-253.08,0.00020281,2]
[336479104,1724866260441,-359.14010502,0.00020281,2]
[336479105,1724866260451,-500.0,0.00020281,2]
[336479106,1724866260460,-407.52552658,0.00020281,2]
[336479107,1724866260470,-180.106816,0.00020281,2]
[336479108,1724866260480,-180.106816,0.00020281,2]
[336479109,1724866260490,-143.01046126,0.00020281,2]
[336479113,1724867226142,-712.5,0.00014247,2]
[336479114,1724867226165,-904.65337,0.00018295,2]
[336479115,1724867226186,-354.530175,0.00018904,2]
[336479116,1724867226207,-162.331455,0.00019178,2]
[336479117,1724867226229,-4293.62955554,0.00019247,2]
[336479118,1724867234158,-306.98992311,0.00019247,2]
[336479119,1724867253112,-500.0,0.00018642,2]
[336479120,1724867253135,-500.0,0.00019235,2]
[336479121,1724867253157,-1204.73728315,0.00019247,2]
[336479122,1724867373152,-190.516167,0.00014247,2]
[336479280,1724867440701,-1977.6301833,0.00018142,2]
[336479332,1724867443660,-893.6473541,0.00018142,2]
[336479333,1724867443670,-195.957411,0.00018453,2]
[336479334,1724867443681,-195.957411,0.00018773,2]
[336479335,1724867443691,-500.0,0.00019065,2]
[336479336,1724867443700,-195.957411,0.00019094,2]
[336479337,1724867443710,-1158.43470395,0.00019247,2]
[336479338,1724867443719,-300.0,0.00019337,2]
[336479339,1724867443729,-500.0,0.00019338,2]
[336479340,1724867443738,-500.0,0.00019338,2]
[336479342,1724867443748,-500.0,0.00019338,2]
[336479344,1724867443758,-500.0,0.00019338,2]
[336479346,1724867443768,-500.0,0.00019338,2]
[336479348,1724867443778,-500.0,0.00019338,2]
[336479350,1724867443787,-500.0,0.00019338,2]
[336479351,1724867443797,-500.0,0.00019338,2]
[336479352,1724867443806,-500.0,0.00019338,2]
[336479353,1724867443815,-500.0,0.00019338,2]
[336479354,1724867443825,-500.0,0.00019338,2]
[336479355,1724867443835,-500.0,0.00019338,2]
[336479356,1724867443845,-500.0,0.00019338,2]
[336479357,1724867443857,-504.44102868,0.00019338,2]
[336479358,1724867443867,-500.0,0.00019338,2]
[336479359,1724867443876,-500.0,0.00019338,2]
[336479360,1724867443885,-500.0,0.00019338,2]
[336479361,1724867443899,-500.0,0.00019338,2]
[336479362,1724867443909,-500.0,0.00019338,2]
[336479363,1724867443919,-500.0,0.00019338,2]
[336479364,1724867443928,-632.56,0.00019338,2]
[336479365,1724867443939,-500.0,0.00019338,2]
[336479366,1724867443949,-947.45,0.00019338,2]
[336479367,1724867443958,-500.0,0.00019338,2]
[336479368,1724867443968,-500.0,0.00019338,2]
[336479369,1724867443977,-687.69,0.00019338,2]
[336479370,1724867443986,-500.0,0.00019338,2]
[336479371,1724867443996,-500.0,0.00019338,2]
[336479372,1724867444006,-500.0,0.00019338,2]
[336479373,1724867444016,-500.0,0.00019338,2]
[336479374,1724867444025,-500.0,0.00019338,2]
[336479375,1724867444035,-500.0,0.00019338,2]
[336479376,1724867444044,-500.0,0.00019338,2]
[336479377,1724867444054,-500.0,0.00019338,2]
[336479378,1724867444063,-500.0,0.00019338,2]
[336479379,1724867444075,-500.0,0.00019338,2]
[336479380,1724867444086,-500.0,0.00019338,2]
[336479381,1724867444096,-500.0,0.00019338,2]
[336479382,1724867444106,-537.09,0.00019338,2]
[336479383,1724867444116,-500.0,0.00019338,2]
[336479384,1724867444127,-500.0,0.00019338,2]
[336479385,1724867444137,-871.14,0.00019338,2]
[336479386,1724867444147,-500.0,0.00019338,2]
[336479387,1724867444158,-500.0,0.00019338,2]
[336479388,1724867444170,-500.0,0.00019338,2]
[336479389,1724867444179,-500.0,0.00019338,2]
[336479390,1724867444192,-500.0,0.00019338,2]
[336479391,1724867444208,-500.0,0.00019338,2]
[336479392,1724867444218,-500.0,0.00019338,2]
[336479393,1724867444227,-500.0,0.00019338,2]
[336479394,1724867444236,-500.0,0.00019338,2]
[336479395,1724867444246,-500.0,0.00019338,2]
[336479396,1724867444256,-500.0,0.00019338,2]
[336479397,1724867444265,-500.0,0.00019338,2]
[336479398,1724867444275,-500.0,0.00019338,2]
[336479399,1724867444284,-1654.49,0.00019338,2]
[336479400,1724867444294,-500.0,0.00019338,2]
[336479401,1724867444304,-500.0,0.00019338,2]
[336479402,1724867444314,-500.0,0.00019338,2]
[336479403,1724867444323,-500.0,0.00019338,2]
[336479404,1724867444332,-500.0,0.00019338,2]
[336479405,1724867444341,-939.66,0.00019338,2]
[336479406,1724867444351,-500.0,0.00019338,2]
[336479407,1724867444360,-500.0,0.00019338,2]
[336479408,1724867444369,-500.0,0.00019338,2]
[336479409,1724867444379,-500.0,0.00019338,2]
[336479410,1724867444388,-500.0,0.00019338,2]
[336479411,1724867444397,-500.0,0.00019338,2]
[336479412,1724867444406,-4945.54,0.00019338,2]
[336479413,1724867444416,-500.0,0.00019338,2]
[336479414,1724867444425,-500.0,0.00019338,2]
[336479415,1724867444443,-555.39,0.00019338,2]
[336479416,1724867444452,-500.0,0.00019338,2]
[336479417,1724867444461,-500.0,0.00019338,2]
[336479418,1724867444471,-500.0,0.00019338,2]
[336479419,1724867444480,-500.0,0.00019338,2]
[336479420,1724867444491,-500.0,0.00019338,2]
[336479421,1724867444500,-500.0,0.00019338,2]
[336479422,1724867444510,-2000.0,0.0001934,2]
[336479423,1724867444520,-500.0,0.00019346,2]
[336479424,1724867444530,-862.87,0.00019346,2]
[336479425,1724867444540,-500.0,0.00019346,2]
[336479426,1724867444549,-500.0,0.00019346,2]
[336479427,1724867444559,-500.0,0.00019346,2]
[336479428,1724867444568,-627.93113443,0.00019346,2]
[336479429,1724867444577,-500.0,0.00019346,2]
[336479430,1724867444587,-500.0,0.00019346,2]
[336479431,1724867444596,-497.08490811,0.00019346,2]
[336479432,1724867444605,-867.49,0.00019346,2]
[336479433,1724867444615,-500.0,0.00019347,2]
[336479434,1724867444625,-500.0,0.00019347,2]
[336479435,1724867444635,-500.0,0.00019347,2]
[336479436,1724867444645,-500.0,0.00019347,2]
[336479437,1724867444655,-500.0,0.00019347,2]
[336479438,1724867444665,-500.0,0.00019347,2]
[336479439,1724867444674,-159.8404146,0.00019347,2]
[336479440,1724867444685,-500.0,0.00019347,2]
[336479441,1724867444694,-500.0,0.00019347,2]
[336479442,1724867444704,-500.0,0.00019347,2]
[336479443,1724867444714,-500.0,0.00019347,2]
[336479444,1724867444724,-500.0,0.00019347,2]
[336479445,1724867444734,-500.0,0.00019347,2]
[336479446,1724867444744,-545.47,0.00019347,2]
[336479447,1724867444754,-500.0,0.00019347,2]
[336479448,1724867444763,-500.0,0.00019347,2]
[336479449,1724867444773,-500.0,0.00019347,2]
[336479450,1724867444783,-500.0,0.00019347,2]
[336479451,1724867444793,-348.04850658,0.00019347,2]
[336479452,1724867444803,-153.67053309,0.00019347,2]
[336479453,1724867444823,-500.0,0.00019347,2]
[336479454,1724867444833,-500.0,0.00019347,2]
[336479455,1724867444843,-500.0,0.00019347,2]
[336479456,1724867444853,-660.47,0.00019347,2]
[336479457,1724867444863,-500.0,0.00019348,2]
[336479458,1724867444872,-500.0,0.00019348,2]
[336479459,1724867444882,-500.0,0.00019348,2]
[336479460,1724867444891,-500.0,0.00019348,2]
[336479461,1724867444901,-500.0,0.00019348,2]
[336479462,1724867444911,-180.95,0.00019348,3]
[336479463,1724867444921,-500.0,0.00019358,2]
[336479464,1724867444931,-598.56036154,0.00019358,2]
[336479465,1724867444942,-161.82562955,0.00019358,2]
[336479466,1724867444951,-500.0,0.00019358,2]
[336479467,1724867444961,-500.0,0.00019358,2]
[336479468,1724867444971,-500.0,0.00019358,2]
[336479469,1724867444981,-500.0,0.00019358,2]
[336479470,1724867444992,-577.83,0.00019358,2]
[336479471,1724867445002,-500.0,0.00019358,2]
[336479472,1724867445012,-548.43,0.00019358,2]
[336479473,1724867445022,-500.0,0.00019358,2]
[336479474,1724867445031,-500.0,0.00019358,2]
[336479475,1724867445041,-505.75770627,0.00019358,2]
[336479476,1724867445051,-500.0,0.00019358,2]
[336479477,1724867445061,-500.0,0.00019358,2]
[336479478,1724867445073,-500.0,0.00019358,2]
[336479479,1724867445085,-500.0,0.00019358,2]
[336479480,1724867445096,-820.56,0.00019358,2]
[336479481,1724867445107,-399.57355716,0.00019358,2]
[336479482,1724867445118,-500.0,0.00019358,2]
[336479483,1724867445129,-500.0,0.00019358,2]
[336479484,1724867445140,-500.0,0.00019358,2]
[336479485,1724867445151,-500.0,0.00019358,2]
[336479486,1724867445162,-500.0,0.00019358,2]
[336479487,1724867445172,-500.0,0.00019358,2]
[336479488,1724867445183,-500.0,0.00019358,2]
[336479489,1724867445193,-500.0,0.00019358,2]
[336479490,1724867445203,-500.0,0.00019358,2]
[336479491,1724867445213,-500.0,0.00019358,2]
[336479492,1724867445222,-500.0,0.00019358,2]
[336479493,1724867445231,-579.22,0.00019358,2]
[336479494,1724867445242,-512.4,0.00019358,2]
[336479495,1724867445252,-500.0,0.00019358,2]
[336479496,1724867445261,-408.32,0.00019358,2]
[336479497,1724867445272,-500.0,0.00019358,2]
[336479498,1724867445282,-500.0,0.00019358,2]
[336479499,1724867445292,-500.0,0.00019358,2]
[336479500,1724867445302,-500.0,0.00019358,2]
[336479501,1724867445312,-500.0,0.00019358,2]
[336479502,1724867445322,-616.73,0.00019358,2]
[336479503,1724867445332,-500.0,0.00019358,2]
[336479504,1724867445341,-500.0,0.00019358,2]
[336479505,1724867445352,-500.0,0.00019358,2]
[336479506,1724867445361,-500.0,0.00019358,2]
[336479507,1724867445371,-500.0,0.00019358,2]
[336479508,1724867445381,-500.0,0.00019358,2]
[336479509,1724867445390,-500.0,0.00019358,2]
[336479510,1724867445400,-500.58120197,0.00019358,2]
[336479511,1724867445410,-500.0,0.00019358,2]
[336479512,1724867445419,-500.0,0.00019358,2]
[336479513,1724867445430,-500.0,0.00019358,2]
[336479514,1724867445444,-500.0,0.00019358,2]
[336479515,1724867445453,-500.0,0.00019358,2]
[336479516,1724867445463,-500.0,0.00019358,2]
[336479517,1724867445472,-500.0,0.00019358,2]
[336479518,1724867445482,-500.0,0.00019358,2]
[336479519,1724867445491,-500.0,0.00019358,2]
[336479520,1724867445502,-500.0,0.00019358,2]
[336479521,1724867445512,-500.0,0.00019358,2]
[336479522,1724867445522,-500.0,0.00019358,2]
[336479523,1724867445534,-500.0,0.00019358,2]
[336479524,1724867445545,-500.0,0.00019358,2]
[336479525,1724867445554,-500.0,0.00019358,2]
[336479526,1724867445564,-500.0,0.00019358,2]
[336479527,1724867445575,-500.0,0.00019358,2]
[336479528,1724867445585,-500.0,0.00019358,2]
[336479529,1724867445595,-500.0,0.00019358,2]
[336479530,1724867445605,-500.0,0.00019358,2]
[336479531,1724867445616,-500.0,0.00019358,2]
[336479532,1724867445626,-500.0,0.00019358,2]
[336479533,1724867445636,-248.89378136,0.00019358,2]
[336479534,1724867445645,-924.17,0.00019358,2]
[336479535,1724867445655,-500.0,0.00019358,2]
[336479536,1724867445665,-693.43,0.00019358,2]
[336479537,1724867445676,-500.0,0.00019358,2]
[336479538,1724867445687,-500.0,0.00019358,2]
[336479539,1724867445697,-504.22771852,0.00019358,2]
[336479540,1724867445707,-500.0,0.00019358,2]
[336479541,1724867445717,-500.0,0.00019358,2]
[336479542,1724867445726,-194.53116099,0.00019358,2]
[336479543,1724867445737,-195.957411,0.00019414,2]
[336479544,1724867445748,-341.37554826,0.00019427,2]
[336479545,1724867445757,-35650.05706,0.00019428,2]
[336479546,1724867445769,-500.0,0.00019438,2]
[336479547,1724867445779,-500.0,0.00019438,2]
[336479548,1724867445789,-500.0,0.00019438,2]
[336479549,1724867445799,-534.49,0.00019438,2]
[336479550,1724867445809,-500.0,0.00019438,2]
[336479551,1724867445818,-500.0,0.00019438,2]
[336479552,1724867445828,-500.0,0.00019438,2]
[336479553,1724867445838,-500.0,0.00019438,2]
[336479554,1724867445848,-500.0,0.00019438,2]
[336479555,1724867445859,-500.0,0.00019438,2]
[336479556,1724867445869,-500.0,0.00019438,2]
[336479557,1724867445879,-500.0,0.00019438,2]
[336479558,1724867445890,-500.0,0.00019438,2]
[336479559,1724867445900,-581.53046044,0.00019438,2]
[336479560,1724867445909,-500.0,0.00019438,2]
[336479561,1724867445919,-483.22,0.00019438,2]
[336479562,1724867445929,-223.99645179,0.00019438,2]
[336479563,1724867445940,-500.0,0.00019438,2]
[336479564,1724867445950,-500.0,0.00019438,2]
[336479565,1724867445960,-585.03,0.00019438,2]
[336479566,1724867445970,-500.0,0.00019438,2]
[336479567,1724867445979,-500.0,0.00019438,2]
[336479568,1724867445990,-3000.0,0.0001945,2]
[336479569,1724867446000,-190.06856457,0.00019459,2]
[336479570,1724867446010,-500.0,0.00019459,2]
[336479571,1724867446020,-500.0,0.00019459,2]
[336479572,1724867446030,-500.0,0.00019459,2]
[336479573,1724867446040,-533.03,0.00019459,2]
[336479574,1724867446050,-500.0,0.00019459,2]
[336479575,1724867446060,-500.0,0.00019459,2]
[336479576,1724867446070,-707.41,0.00019459,2]
[336479577,1724867446084,-500.0,0.00019459,2]
[336479578,1724867446093,-500.0,0.00019459,2]
[336479579,1724867446103,-500.0,0.00019459,2]
[336479580,1724867446114,-500.0,0.00019459,2]
[336479581,1724867446124,-500.0,0.00019459,2]
[336479582,1724867446134,-500.0,0.00019459,2]
[336479584,1724867446144,-545.17,0.00019459,2]
[336479586,1724867446154,-500.0,0.00019459,2]
[336479589,1724867446166,-226.34983852,0.00019512,2]
[336479597,1724867446380,-35650.05706,0.00019592,2]
[336479598,1724867446391,-33411.59254807,0.00019602,2]
[336479599,1724867446402,-35650.05706,0.00019611,2]
[336479600,1724867446413,-500.0,0.00019612,2]
[336479601,1724867446423,-500.0,0.00019612,2]
[336479602,1724867446433,-500.0,0.00019612,2]
[336479603,1724867446446,-329.81791006,0.00019612,2]
[336479604,1724867446456,-500.0,0.00019612,2]
[336479605,1724867446466,-500.0,0.00019612,2]
[336479606,1724867446476,-500.0,0.00019612,2]
[336479607,1724867446486,-500.0,0.00019612,2]
[336479608,1724867446496,-500.0,0.00019612,2]
[336479609,1724867446506,-538.2,0.00019612,2]
[336479610,1724867446515,-500.0,0.00019612,2]
[336479611,1724867446525,-500.0,0.00019612,2]
[336479612,1724867446536,-500.0,0.00019612,2]
[336479613,1724867446546,-632.56,0.00019612,2]
[336479614,1724867446556,-500.0,0.00019612,2]
[336479615,1724867446566,-947.45,0.00019612,2]
[336479616,1724867446576,-500.0,0.00019612,2]
[336479617,1724867446586,-500.0,0.00019612,2]
[336479618,1724867446596,-687.69,0.00019612,2]
[336479619,1724867446606,-582.31,0.00019612,2]
[336479620,1724867446615,-500.0,0.00019612,2]
[336479621,1724867446624,-500.0,0.00019612,2]
[336479622,1724867446634,-500.0,0.00019612,2]
[336479623,1724867446644,-500.0,0.00019612,2]
[336479624,1724867446654,-500.0,0.00019612,2]
[336479625,1724867446663,-500.0,0.00019612,2]
[336479626,1724867446673,-612.58425573,0.00019612,2]
[336479627,1724867446685,-500.0,0.00019612,2]
[336479628,1724867446694,-500.0,0.00019612,2]
[336479629,1724867446703,-500.0,0.00019612,2]
[336479630,1724867446712,-537.09,0.00019612,2]
[336479631,1724867446723,-500.0,0.00019612,2]
[336479632,1724867446734,-500.0,0.00019612,2]
[336479633,1724867446745,-871.14,0.00019612,2]
[336479634,1724867446756,-500.0,0.00019612,2]
[336479635,1724867446766,-500.0,0.00019612,2]
[336479636,1724867446776,-500.0,0.00019612,2]
[336479637,1724867446786,-500.0,0.00019612,2]
[336479638,1724867446796,-500.0,0.00019612,2]
[336479639,1724867446805,-575.01,0.00019612,2]
[336479640,1724867446816,-500.0,0.00019612,2]
[336479641,1724867446827,-500.0,0.00019612,2]
[336479642,1724867446837,-500.0,0.00019612,2]
[336479643,1724867446847,-500.0,0.00019612,2]
[336479644,1724867446857,-549.14,0.00019612,2]
[336479645,1724867446867,-500.0,0.00019612,2]
[336479647,1724867446876,-1654.49,0.00019612,2]
[336479649,1724867446886,-500.0,0.00019612,2]
[336479651,1724867446896,-500.0,0.00019612,2]
[336479652,1724867446905,-500.0,0.00019612,2]
[336479653,1724867446915,-500.0,0.00019612,2]
[336479654,1724867446925,-500.0,0.00019612,2]
[336479655,1724867446939,-939.66,0.00019612,2]
[336479656,1724867446949,-500.0,0.00019612,2]
[336479657,1724867446959,-500.0,0.00019612,2]
[336479658,1724867446968,-500.0,0.00019612,2]
[336479659,1724867446978,-500.0,0.00019612,2]
[336479660,1724867446987,-4945.54,0.00019612,2]
[336479661,1724867446998,-634.61,0.00019612,2]
[336479662,1724867447007,-500.0,0.00019612,2]
[336479663,1724867447017,-500.0,0.00019612,2]
[336479664,1724867447027,-442.42,0.00019612,2]
[336479665,1724867447036,-500.0,0.00019612,2]
[336479666,1724867447046,-500.0,0.00019612,2]
[336479667,1724867447056,-151.0,0.00019613,2]
[336479668,1724867447065,-151.0,0.00019613,2]
[336479669,1724867447077,-151.0,0.00019613,2]
[336479670,1724867447087,-500.0,0.0001962,2]
[336479671,1724867447096,-862.87,0.0001962,2]
[336479672,1724867447106,-500.0,0.0001962,2]
[336479673,1724867447117,-500.0,0.0001962,2]
[336479674,1724867447126,-500.0,0.0001962,2]
[336479675,1724867447135,-500.0,0.0001962,2]
[336479676,1724867447145,-500.0,0.0001962,2]
[336479677,1724867447157,-867.49,0.0001962,2]
[336479678,1724867447167,-500.0,0.00019621,2]
[336479679,1724867447176,-500.0,0.00019621,2]
[336479680,1724867447186,-607.08926104,0.00019621,2]
[336479681,1724867447196,-500.0,0.00019621,2]
[336479682,1724867447205,-500.0,0.00019621,2]
[336479683,1724867447218,-500.0,0.00019621,2]
[336479684,1724867447228,-500.0,0.00019621,2]
[336479685,1724867447237,-626.03078535,0.00019621,2]
[336479686,1724867447247,-545.47,0.00019621,2]
[336479687,1724867447257,-500.0,0.00019621,2]
[336479688,1724867447267,-178.48709143,0.00019621,2]
[336479689,1724867447276,-500.0,0.00019621,2]
[336479690,1724867447285,-500.0,0.00019621,2]
[336479691,1724867447295,-660.47,0.00019621,2]
[336479692,1724867447304,-500.0,0.00019622,2]
[336479693,1724867447313,-500.0,0.00019622,2]
[336479694,1724867447322,-545.0385696,0.00019622,2]
[336479695,1724867447332,-500.0,0.00019622,2]
[336479696,1724867447341,-500.0,0.00019622,2]
[336479697,1724867447351,-500.0,0.00019632,2]
[336479698,1724867447361,-500.0,0.00019632,2]
[336479699,1724867447370,-500.0,0.00019632,2]
[336479700,1724867447380,-500.0,0.00019632,2]
[336479701,1724867447389,-500.0,0.00019632,2]
[336479702,1724867447399,-577.83,0.00019632,2]
[336479703,1724867447409,-500.0,0.00019632,2]
[336479704,1724867447419,-548.43,0.00019632,2]
[336479705,1724867447428,-500.0,0.00019632,2]
[336479706,1724867447440,-500.0,0.00019632,2]
[336479707,1724867447449,-500.0,0.00019632,2]
[336479708,1724867447458,-500.0,0.00019632,2]
[336479709,1724867447467,-500.0,0.00019632,2]
[336479710,1724867447477,-500.0,0.00019632,2]
[336479711,1724867447486,-820.56,0.00019632,2]
[336479712,1724867447496,-328.19214273,0.00019632,2]
[336479713,1724867447506,-500.0,0.00019632,2]
[336479714,1724867447515,-500.0,0.00019632,2]
[336479715,1724867447525,-500.0,0.00019632,2]
[336479716,1724867447537,-500.0,0.00019632,2]
[336479717,1724867447547,-500.0,0.00019632,2]
[336479718,1724867447557,-500.0,0.00019632,2]
[336479719,1724867447567,-500.0,0.00019632,2]
[336479720,1724867447576,-361.60662439,0.00019632,2]
[336479721,1724867447586,-205.89775932,0.00019632,2]
[336479722,1724867447595,-500.0,0.00019632,2]
[336479723,1724867447605,-500.0,0.00019632,2]
[336479724,1724867447614,-500.0,0.00019632,2]
[336479725,1724867447623,-500.0,0.00019632,2]
[336479726,1724867447633,-500.0,0.00019632,2]
[336479727,1724867447643,-605.58,0.00019632,2]
[336479728,1724867447653,-500.0,0.00019632,2]
[336479729,1724867447663,-500.0,0.00019632,2]
[336479730,1724867447672,-500.0,0.00019632,2]
[336479731,1724867447684,-240.18283585,0.00019632,2]
[336479732,1724867447698,-218.26,0.00019632,2]
[336479733,1724867447708,-568.37,0.00019632,2]
[336479734,1724867447724,-500.0,0.00019632,2]
[336479735,1724867447734,-500.0,0.00019632,2]
[336479736,1724867447744,-500.0,0.00019632,2]
[336479737,1724867447754,-500.0,0.00019632,2]
[336479738,1724867447764,-500.0,0.00019632,2]
[336479739,1724867447774,-500.0,0.00019632,2]
[336479740,1724867447784,-500.0,0.00019632,2]
[336479741,1724867447794,-500.0,0.00019632,2]
[336479742,1724867447804,-500.0,0.00019632,2]
[336479743,1724867447814,-500.0,0.00019632,2]
[336479744,1724867447824,-500.0,0.00019632,2]
[336479745,1724867447834,-500.0,0.00019632,2]
[336479746,1724867447844,-500.0,0.00019632,2]
[336479747,1724867447853,-500.0,0.00019632,2]
[336479748,1724867447863,-500.0,0.00019632,2]
[336479749,1724867447873,-500.0,0.00019632,2]
[336479750,1724867447882,-500.0,0.00019632,2]
[336479751,1724867447892,-500.0,0.00019632,2]
[336479752,1724867447902,-500.0,0.00019632,2]
[336479753,1724867447912,-500.0,0.00019632,2]
[336479754,1724867447922,-500.0,0.00019632,2]
[336479755,1724867447931,-500.0,0.00019632,2]
[336479756,1724867447941,-500.0,0.00019632,2]
[336479757,1724867447951,-924.17,0.00019632,2]
[336479758,1724867447960,-514.0,0.00019632,2]
[336479759,1724867447971,-693.43,0.00019632,2]
[336479760,1724867447980,-507.26894198,0.00019632,2]
[336479761,1724867447989,-455.81,0.00019632,2]
[336479762,1724867447999,-169.53128518,0.00019632,2]
[336479763,1724867448009,-35650.05706,0.00019694,2]
[336479764,1724867448019,-500.0,0.00019712,2]
[336479765,1724867448029,-500.0,0.00019712,2]
[336479766,1724867448039,-534.49,0.00019712,2]
[336479767,1724867448049,-500.0,0.00019712,2]
[336479768,1724867448059,-500.0,0.00019712,2]
[336479769,1724867448070,-500.0,0.00019712,2]
[336479770,1724867448083,-500.0,0.00019712,2]
[336479771,1724867448092,-500.0,0.00019712,2]
[336479772,1724867448102,-500.0,0.00019712,2]
[336479773,1724867448112,-500.0,0.00019712,2]
[336479774,1724867448123,-500.0,0.00019712,2]
[336479775,1724867448133,-500.0,0.00019712,2]
[336479776,1724867448143,-500.0,0.00019712,2]
[336479777,1724867448152,-500.0,0.00019712,2]
[336479778,1724867448163,-500.0,0.00019712,2]
[336479779,1724867448173,-500.0,0.00019712,2]
[336479780,1724867448184,-151.0,0.00019723,2]
[336479781,1724867448207,-151.0,0.00019723,2]
[336479782,1724867448217,-151.0,0.00019723,2]
[336479783,1724867448227,-500.0,0.00019733,2]
[336479784,1724867448237,-500.0,0.00019733,2]
[336479785,1724867448248,-500.0,0.00019733,2]
[336479786,1724867448259,-500.0,0.00019733,2]
[336479787,1724867448268,-500.0,0.00019733,2]